bitfinex-derivatives/quotes_ETHF0:USTF0_20210407
["timestamp","ask_amount","ask_price","bid_price","bid_amount"]
[1617808550658,87.2854,2002.5,2002.4,1.4443]
[1617808550857,89.2854,2002.5,2002.4,1.4443]
[1617808551257,60.19235,2002.5,2002.4,1.4443]
[1617808551756,3.91695,2002.5,2002.4,1.4443]
[1617808551960,2.90695,2002.5,2002.4,1.4443]
[1617808553260,72.4982,2002.7,2002.4,4.35125]
[1617808553461,2.90695,2002.9,2002.4,6.77815]
[1617808553679,2.90695,2002.9,2002.7,83.7725]
[1617808554073,2.90695,2002.9,2002.8,6.18]
[1617808555283,2.90695,2002.9,2002.8,9.08695]
[1617808556465,3.59714527,2003.7,2002.8,9.08695]
[1617808556665,2.58574527,2003.7,2003.3,66.6419]
[1617808556965,2.58574527,2003.7,2003.4,6.15]
[1617808557367,2.58574527,2003.7,2003.5,2.90695]
[1617808557579,2.58574527,2003.7,2003.6,6.0]
[1617808557769,3.58414527,2003.7,2003.6,6.0]
[1617808557972,3.58414527,2003.7,2003.4,6.22]
[1617808558176,3.5694,2003.7,2003.4,6.22]
[1617808558468,3.5694,2003.7,2003.6,6.09]
[1617808558668,2.571,2003.7,2003.4,6.23]
[1617808558968,2.571,2003.7,2003.6,6.07]
[1617808559168,2.571,2003.7,2003.4,6.12]
[1617808559468,5.47795,2003.7,2003.5,2.90695]
[1617808559676,5.47795,2003.7,2003.6,6.16]
[1617808559889,5.47795,2003.7,2003.5,2.90695]
[1617808560286,5.47795,2003.7,2003.6,6.2]
[1617808562073,5.47795,2003.7,2003.4,6.0]
[1617808562371,5.47795,2003.7,2003.6,6.24]
[1617808562871,5.47795,2003.7,2003.5,5.5]
[1617808563070,5.47795,2003.7,2003.6,6.1]
[1617808563271,5.47795,2003.7,2003.2,2.90695]
[1617808563472,68.0445,2003.4,2003.2,2.90695]
[1617808563671,68.0445,2003.4,2003.3,0.47]
[1617808565282,70.95145,2003.4,2003.3,0.47]
[1617808566077,70.95145,2003.4,2003.3,3.3596]
[1617808566320,2.90695,2003.4,2003.3,3.3596]
[1617808566575,2.90695,2003.4,2003.3,59.3768]
[1617808567281,75.4445,2003.7,2003.3,59.3768]
[1617808567481,72.8735,2003.7,2003.3,59.3768]
[1617808567881,2.571,2004.3,2003.3,3.3596]
[1617808568084,2.571,2004.3,2004.0,58.6685]
[1617808568287,2.571,2004.3,2004.0,61.1384]
[1617808568485,2.571,2004.3,2004.1,6.03]
[1617808569485,2.90695,2004.2,2004.1,6.03]
[1617808570587,58.6436,2004.1,2004.0,6.03]
[1617808570788,58.6436,2004.1,2003.9,2.90695]
[1617808571190,58.6436,2004.1,2004.0,5.99]
[1617808572699,2.90695,2004.2,2004.1,70.5945]
[1617808573091,2.90695,2004.2,2004.1,76.7845]
[1617808575392,2.90695,2004.2,2004.1,6.19]
[1617808575693,83.80345,2004.2,2004.0,6.02]
[1617808576092,83.80345,2004.2,2004.1,6.16]
[1617808576293,83.80345,2004.2,2004.0,6.0]
[1617808576592,2.90695,2004.2,2004.1,6.09]
[1617808576995,2.90695,2004.2,2004.0,6.2]
[1617808577193,2.90695,2004.2,2004.1,6.05]
[1617808577495,2.90695,2004.5,2004.2,78.2942]
[1617808577697,2.571,2004.9,2004.3,30.0]
[1617808577997,2.571,2004.9,2004.6,30.0]
[1617808578194,2.571,2004.9,2004.6,36.281]
[1617808578397,0.01473752,2006.0,2005.1,30.0]
[1617808578695,0.02947504,2006.1,2005.9,83.5295]
[1617808578696,0.01474092,2006.1,2005.9,83.5295]
[1617808578894,0.01474092,2006.1,2005.9,85.4366]
[1617808579095,0.01474092,2006.1,2006.0,6.12]
[1617808579595,2.92169092,2006.1,2006.0,6.12]
[1617808579796,2.90695,2006.1,2006.0,6.12]
[1617808583802,2.90695,2006.1,2005.8,6.18]
[1617808584001,2.90695,2006.1,2006.0,6.24]
[1617808584402,2.90695,2006.1,2005.9,5.99]
[1617808584702,2.90695,2006.1,2006.0,73.8507]
[1617808584904,2.90695,2006.1,2006.0,67.6907]
[1617808585305,2.90695,2006.1,2006.0,73.7407]
[1617808586506,2.90695,2006.1,2006.0,76.158]
[1617808587807,2.90695,2006.1,2006.0,73.7407]
[1617808590913,2.90695,2006.1,2006.0,6.05]
[1617808591717,81.3626,2006.0,2005.5,6.01]
[1617808591935,82.3558,2006.0,2005.5,6.01]
[1617808592214,82.3558,2006.0,2005.4,64.7827]
[1617808592417,82.3558,2006.0,2005.5,6.14]
[1617808593039,112.3558,2006.0,2005.5,6.14]
[1617808593614,2.90695,2005.6,2005.5,6.14]
[1617808593814,5.89195,2005.6,2005.5,6.14]
[1617808598120,2.90695,2005.6,2005.5,6.14]
[1617808602631,2.90695,2005.6,2005.2,6.03]
[1617808602926,2.90695,2005.6,2005.5,74.8946]
[1617808603328,2.90695,2005.6,2005.5,68.7246]
[1617808603627,2.90695,2005.6,2005.5,74.9446]
[1617808603826,2.90695,2005.6,2005.5,77.85155]
[1617808604928,2.90695,2005.6,2005.5,9.12695]
[1617808618449,5.27685,2005.6,2005.5,9.12695]
[1617808620352,5.27685,2005.6,2005.5,6.22]
[1617808620852,81.065,2005.5,2005.1,6.17]
[1617808621151,81.065,2005.5,2004.5,3.1]
[1617808621453,81.065,2005.5,2004.7,6.1]
[1617808621661,81.065,2005.5,2004.4,85.8641]
[1617808621662,81.065,2005.5,2004.5,6.14]
[1617808622055,81.065,2005.5,2004.9,2.90695]
[1617808622460,81.065,2005.5,2005.0,6.06]
[1617808624156,2.90695,2005.1,2005.0,6.06]
[1617808624355,5.57145,2005.1,2005.0,6.06]
[1617808625755,2.90695,2005.1,2005.0,6.06]
[1617808632769,65.63835,2005.1,2005.0,6.06]
[1617808634675,2.90695,2005.1,2005.0,6.06]
[1617808634972,32.90695,2005.1,2005.0,5.5546]
[1617808635171,32.90695,2005.1,2004.0,6.19]
[1617808635374,32.90695,2005.1,2003.6,71.1874]
[1617808635375,112.01935,2005.1,2005.0,5.0]
[1617808635572,34.90695,2005.1,2005.0,5.0]
[1617808635814,34.90695,2005.1,2003.6,63.8074]
[1617808635815,34.90695,2005.1,2004.1,6.05]
[1617808636072,34.90695,2005.1,2005.0,6.0]
[1617808636274,32.0,2005.1,2004.0,2.90695]
[1617808636475,32.0,2005.1,2004.1,6.06]
[1617808636793,32.0,2005.1,2005.0,6.05]
[1617808636975,57.5476,2004.4,2003.6,63.8074]
[1617808637276,57.5476,2004.4,2004.1,5.98]
[1617808637277,59.5752,2004.4,2004.1,5.98]
[1617808637474,59.5752,2004.4,2003.7,6.21]
[1617808637674,59.5752,2004.4,2003.6,63.8074]
[1617808637883,59.5752,2004.4,2004.2,6.14]
[1617808638074,2.0276,2004.4,2003.7,6.01]
[1617808638299,63.5946,2005.5,2004.4,71.6588]
[1617808638485,61.1095,2005.5,2004.4,71.6588]
[1617808638679,61.1095,2005.5,2004.5,6.0]
[1617808640179,61.1095,2005.5,2005.1,2.90695]
[1617808640379,61.1095,2005.5,2005.1,5.52525]
[1617808640680,61.1095,2005.5,2005.2,6.22]
[1617808641780,2.0,2006.4,2005.2,6.22]
[1617808642188,2.90695,2005.3,2005.2,6.22]
[1617808642393,2.90695,2005.3,2005.2,67.4009]
[1617808647589,2.90695,2005.3,2005.2,6.22]
[1617808650484,74.4536,2005.2,2004.7,2.90695]
[1617808650686,74.4536,2005.2,2004.8,6.24]
[1617808651184,74.4536,2005.2,2004.7,2.90695]
[1617808651484,74.4536,2005.2,2004.8,6.12]
[1617808652286,2.90695,2004.9,2004.8,6.12]
[1617808655895,5.098,2006.1,2004.9,70.8892]
[1617808656094,5.098,2006.1,2004.9,73.4865]
[1617808656297,5.098,2006.1,2005.6,2.90695]
[1617808656597,85.99499955,2006.5,2005.7,63.4846]
[1617808657497,0.01476515,2005.8,2005.7,63.4846]
[1617808658098,0.01476486,2006.0,2005.7,63.4846]
[1617808658298,2.90695,2005.8,2005.7,63.4846]
[1617808658998,2.90695,2005.8,2005.7,6.06]
[1617808659299,2.90695,2005.8,2005.1,79.387]
[1617808659699,2.90695,2005.8,2005.7,5.98]
[1617808659899,2.92171524,2005.8,2005.2,6.25]
[1617808660198,73.4792,2005.4,2005.3,2.90695]
[1617808660698,73.4792,2005.4,2005.3,8.99695]
[1617808664502,2.90695,2005.8,2005.3,8.99695]
[1617808664706,2.90695,2005.8,2005.4,82.4574]
[1617808665101,2.90695,2005.8,2005.5,6.06]
[1617808666306,2.90695,2005.8,2005.7,2.90695]
[1617808666706,2.90695,2005.8,2005.7,9.09695]
[1617808667308,2.90695,2005.8,2005.7,39.09695]
[1617808668008,0.01476307,2006.4,2005.7,39.09695]
[1617808668208,0.01476262,2006.5,2005.8,74.3638]
[1617808668507,0.01476259,2006.6,2006.2,2.90695]
[1617808668708,0.01476259,2006.6,2006.5,74.3638]
[1617808669109,0.01476259,2006.6,2006.5,80.4538]
[1617808670310,2.90695,2006.6,2006.5,80.4538]
[1617808671210,2.90695,2006.6,2006.5,6.09]
[1617808671411,2.90695,2006.6,2006.3,6.05]
[1617808671610,64.46,2006.5,2006.3,6.05]
[1617808671811,64.46,2006.5,2006.2,77.96895]
[1617808672012,2.92170906,2006.6,2006.4,6.18]
[1617808672413,2.92170906,2006.6,2006.3,6.0]
[1617808672712,66.4282,2006.3,2006.2,2.90695]
[1617808672911,69.2908,2006.3,2006.2,2.90695]
[1617808673412,69.2908,2006.3,2006.2,9.15695]
[1617808674414,72.19775,2006.3,2006.2,9.15695]
[1617808676115,5.76955,2006.3,2006.2,9.15695]
[1617808676317,2.90695,2006.3,2006.2,87.65455]
[1617808676518,2.90695,2006.3,2006.2,6.25]
[1617808676920,5.24155,2006.3,2005.9,5.98]
[1617808677221,5.24155,2006.3,2006.2,6.18]
[1617808677621,7.24155,2006.3,2005.9,6.27]
[1617808677833,7.24155,2006.3,2006.2,6.22]
[1617808678222,77.9143,2006.2,2006.0,6.25]
[1617808678424,77.9143,2006.2,2005.1,2.90695]
[1617808678622,0.01475033,2006.1,2005.1,2.90695]
[1617808678822,0.01475033,2006.1,2005.2,2.98]
[1617808679022,0.01475033,2006.1,2005.1,2.90695]
[1617808679322,0.01475033,2006.1,2005.2,6.25]
[1617808680424,2.90695,2005.3,2005.2,6.25]
[1617808680624,3.89025,2005.3,2005.2,6.25]
[1617808681832,2.90695,2005.3,2005.2,6.25]
[1617808684535,81.5232,2006.2,2005.2,6.25]
[1617808684836,81.5232,2006.2,2005.3,74.3222]
[1617808685036,81.5232,2006.2,2005.4,6.19]
[1617808686241,81.53794865,2006.2,2005.4,6.19]
[1617808686439,81.53794865,2006.2,2005.8,2.90695]
[1617808686841,81.53794865,2006.2,2005.9,6.23]
[1617808688446,2.90695,2006.0,2005.9,6.23]
[1617808688645,2.90695,2006.0,2005.4,6.19]
[1617808688846,2.90695,2006.0,2005.3,77.22915]
[1617808689245,2.90695,2006.0,2005.5,6.17]
[1617808689447,2.90695,2006.0,2005.4,6.2]
[1617808689647,2.90695,2006.0,2005.3,77.22915]
[1617808689946,2.90695,2006.0,2005.6,5.98]
[1617808690156,2.90695,2006.0,2005.4,6.07]
[1617808690346,2.90695,2006.0,2005.7,6.04]
[1617808690548,0.01474935,2006.1,2005.7,6.04]
[1617808690749,81.53794938,2006.2,2005.4,6.17]
[1617808690948,81.53794938,2006.2,2005.8,6.22]
[1617808691252,81.53794938,2006.2,2005.4,6.23]
[1617808691557,81.53794938,2006.2,2005.9,6.05]
[1617808691956,81.53794938,2006.2,2005.4,6.27]
[1617808692454,2.90695,2005.5,2005.4,6.27]
[1617808696161,3.91805,2005.5,2005.4,6.27]
[1617808696360,2.90695,2005.5,2005.4,6.27]
[1617808713087,4.90695,2005.5,2005.4,6.27]
[1617808717092,34.90695,2005.5,2004.7,6.21]
[1617808717292,30.0,2005.3,2004.7,6.21]
[1617808717616,32.5313,2005.3,2004.5,0.52]
[1617808717797,2.0,2005.2,2003.1,5.1970892]
[1617808718039,2.0,2005.2,2003.1,87.4739892]
[1617808718040,68.4995,2003.9,2003.1,87.4739892]
[1617808718297,1.9222,2003.9,2003.8,6.24]
[1617808718636,59.8774,2003.7,2003.2,5.7]
[1617808718808,59.8774,2003.7,2003.5,2.90695]
[1617808719197,59.8774,2003.7,2003.6,6.16]
[1617808719602,1.9222,2003.9,2003.6,6.16]
[1617808719795,65.4019,2003.8,2003.6,86.2753]
[1617808719998,1.9222,2003.9,2003.6,6.16]
[1617808720197,65.3693,2005.1,2004.4,80.0753]
[1617808720597,65.3693,2005.1,2004.5,6.0]
[1617808720801,65.3693,2005.1,2004.7,2.90695]
[1617808721003,1.0093,2005.4,2004.7,5.23755]
[1617808721202,81.8042,2005.4,2005.0,58.559]
[1617808721634,81.8042,2005.4,2005.1,6.07]
[1617808722805,2.90695,2005.2,2005.1,6.07]
[1617808724706,2.90695,2005.2,2004.3,85.4149]
[1617808724907,2.90695,2004.4,2004.3,79.2949]
[1617808725107,2.90695,2004.4,2004.1,2.90695]
[1617808725306,2.90695,2004.4,2004.3,6.04]
[1617808725507,77.37195,2004.4,2004.3,66.4428]
[1617808725708,77.37195,2004.4,2004.3,60.4028]
[1617808725908,77.37195,2004.4,2004.3,66.3928]
[1617808726809,2.90695,2004.4,2004.3,5.99]
[1617808727008,2.90695,2004.4,2004.2,6.17]
[1617808727508,2.90695,2004.4,2004.3,6.2]
[1617808727709,2.90695,2004.4,2004.2,6.15]
[1617808728110,2.90695,2004.4,2004.3,6.06]
[1617808728311,2.90695,2004.4,2004.2,6.07]
[1617808731816,82.7482,2005.0,2004.5,60.933]
[1617808732418,4.571,2005.5,2004.6,6.01]
[1617808732617,62.7648,2005.4,2005.0,70.0417]
[1617808732917,2.90695,2005.1,2005.0,70.0417]
[1617808733317,2.90695,2005.1,2005.0,76.2717]
[1617808736120,2.90695,2005.1,2005.0,6.23]
[1617808736320,5.07135,2005.1,2005.0,6.23]
[1617808736722,5.07135,2005.1,2004.6,6.1]
[1617808737022,2.90695,2004.7,2004.6,6.1]
[1617808737223,2.90695,2004.7,2004.5,71.11395]
[1617808737426,2.90695,2004.7,2004.6,6.0]
[1617808741534,61.7365,2004.6,2003.8,6.13]
[1617808741733,63.9277,2004.6,2003.8,6.13]
[1617808741936,63.9277,2004.6,2003.7,71.5464]
[1617808742133,63.9277,2004.6,2003.9,6.19]
[1617808742533,63.9277,2004.6,2003.8,5.99]
[1617808742740,63.9277,2004.6,2004.0,6.09]
[1617808743144,63.9277,2004.6,2003.8,9.17695]
[1617808743438,63.9277,2004.6,2004.1,6.27]
[1617808743738,63.9277,2004.6,2003.9,6.18]
[1617808744139,63.9277,2004.6,2004.2,6.15]
[1617808744341,63.9277,2004.6,2003.9,6.2]
[1617808744547,2.1912,2004.6,2003.9,6.2]
[1617808744743,2.1912,2004.6,2004.3,6.13]
[1617808744941,2.1912,2004.6,2003.9,6.25]
[1617808745142,66.275,2004.3,2003.9,6.25]
[1617808745442,66.275,2004.3,2003.8,2.90695]
[1617808745642,66.275,2004.3,2004.0,6.28]
[1617808745852,66.275,2004.3,2003.9,6.11]
[1617808746051,2.90695,2004.4,2003.8,2.90695]
[1617808746258,65.5021,2004.3,2004.1,74.6976]
[1617808746450,65.5021,2004.3,2004.1,68.7076]
[1617808746748,65.5021,2004.3,2004.2,6.02]
[1617808753259,66.5132,2004.3,2004.2,6.02]
[1617808753462,1.0111,2004.3,2004.2,6.02]
[1617808754059,64.4933,2003.7,2003.3,0.08]
[1617808754357,64.4933,2003.7,2003.2,70.8795]
[1617808754358,66.4677,2003.7,2003.2,70.8795]
[1617808754759,66.4677,2003.7,2003.4,6.11]
[1617808755057,66.4677,2003.7,2003.3,6.18]
[1617808755358,66.4677,2003.7,2003.5,6.11]
[1617808755560,66.4677,2003.7,2003.4,2.90695]
[1617808755957,66.4677,2003.7,2003.5,6.2]
[1617808757180,2.90695,2003.6,2003.5,6.2]
[1617808760068,2.90695,2003.6,2003.5,5.6959]
[1617808760667,3.90615,2003.6,2003.5,5.6959]
[1617808760868,33.90615,2003.6,2003.5,5.6959]
[1617808761071,35.90615,2003.6,2003.5,5.6959]
[1617808761668,35.90615,2003.6,2003.5,3.7437]
[1617808762169,33.90615,2003.6,2003.5,2.9862]
[1617808762775,35.90615,2003.6,2003.5,2.9862]
[1617808763469,35.90615,2003.6,2003.5,2.211]
[1617808764169,35.90615,2003.6,2003.5,1.9841]
[1617808766972,5.90615,2003.6,2003.5,1.9025]
[1617808767377,35.90615,2003.6,2003.5,1.9025]
[1617808767977,35.90615,2003.6,2003.5,1.478]
[1617808768876,5.90615,2003.6,2003.5,1.478]
[1617808769078,35.90615,2003.6,2003.5,1.478]
[1617808770179,35.90615,2003.6,2003.5,1.3106]
[1617808771483,33.90615,2003.6,2003.5,1.3106]
[1617808771682,3.90615,2003.6,2003.5,1.3106]
[1617808773384,2.90695,2003.6,2003.5,1.3106]
[1617808774187,85.03695,2003.6,2003.5,1.3106]
[1617808776097,2.90695,2003.6,2003.5,1.3106]
[1617808776994,5.93565,2003.6,2003.5,1.3106]
[1617808778203,2.90695,2003.6,2003.5,1.3106]
[1617808779697,4.90505,2003.6,2003.5,1.3106]
[1617808782105,2.90695,2003.6,2003.5,1.3106]
[1617808785314,2.90695,2003.6,2003.5,1.2004]
[1617808789118,2.90695,2003.6,2003.5,3.2789]
[1617808791121,3.89285,2003.6,2003.5,3.2789]
[1617808791422,2.90695,2003.6,2003.5,3.2789]
[1617808791821,2.90695,2003.6,2003.5,77.4664]
[1617808793521,2.90695,2003.6,2003.5,3.2789]
[1617808793721,2.90695,2003.6,2003.5,1.2004]
[1617808794122,5.72575,2003.6,2003.5,1.2004]
[1617808798326,2.90695,2003.6,2003.5,1.2004]
[1617808798526,2.90695,2003.6,2003.5,0.1787]
[1617808798929,2.90695,2003.6,2003.5,2.9182]
[1617808802535,3.89955,2003.6,2003.5,2.9182]
[1617808802733,2.90695,2003.6,2003.5,2.9182]
[1617808803835,3.90805,2003.6,2003.5,2.9182]
[1617808804075,2.90695,2003.6,2003.5,0.1787]
[1617808808670,1.8213,2003.5,2003.4,2.1099]
[1617808809139,1.8213,2003.5,2003.4,8.2799]
[1617808811443,1.8213,2003.5,2003.4,38.2799]
[1617808811642,72.6577,2004.7,2004.1,79.2032]
[1617808811986,2.58570669,2005.5,2004.1,79.2032]
[1617808811987,2.571,2005.5,2004.1,32.1242]
[1617808812175,2.571,2005.5,2005.4,61.5427]
[1617808812342,2.571,2005.5,2005.4,63.8282]
[1617808812545,2.571,2005.5,2005.4,8.3555]
[1617808812844,0.992,2006.0,2005.4,8.3555]
[1617808813444,2.571,2006.1,2005.4,8.3555]
[1617808813645,2.571,2006.1,2006.0,74.254]
[1617808813844,2.571,2006.1,2006.0,82.7528]
[1617808815546,5.47795,2006.1,2006.0,82.7528]
[1617808818348,5.47795,2006.1,2006.0,6.05]
[1617808818755,5.47795,2006.1,2005.4,6.14]
[1617808818952,79.2548,2006.0,2005.3,2.90695]
[1617808819152,80.2587,2006.0,2005.3,2.90695]
[1617808819352,80.2587,2006.0,2005.5,6.24]
[1617808819553,80.2587,2006.0,2005.4,6.03]
[1617808819752,2.90695,2005.6,2005.4,6.03]
[1617808819953,2.90695,2005.6,2005.3,2.90695]
[1617808820153,2.90695,2005.6,2005.4,6.05]
[1617808821254,2.90695,2005.6,2004.8,6.26]
[1617808821455,5.33945,2005.6,2004.8,6.26]
[1617808821668,2.4325,2005.6,2005.5,6.01]
[1617808821856,78.5912,2005.5,2005.0,2.90695]
[1617808822058,78.5912,2005.5,2005.1,0.32]
[1617808822458,78.5912,2005.5,2004.4,73.0998]
[1617808822658,78.5912,2005.5,2005.1,6.1]
[1617808822858,2.4325,2005.6,2005.1,6.1]
[1617808823058,74.5823,2005.6,2005.2,57.5072]
[1617808823260,72.1498,2005.6,2005.2,63.5572]
[1617808823659,72.1498,2005.6,2005.2,57.5072]
[1617808823660,2.90695,2005.3,2005.2,57.5072]
[1617808824059,2.90695,2005.3,2005.2,63.7772]
[1617808824562,2.90695,2005.3,2005.2,6.27]
[1617808824962,76.7956,2005.0,2004.9,75.085]
[1617808825563,76.7956,2005.0,2004.9,78.425]
[1617808825763,79.70255,2005.0,2004.9,78.425]
[1617808827163,4.98375,2005.0,2004.9,3.34]
[1617808827565,4.98375,2005.0,2004.7,6.27]
[1617808827864,4.98375,2005.0,2004.9,6.02]
[1617808828064,4.98375,2005.0,2004.6,2.90695]
[1617808828265,2.90695,2005.0,2004.7,6.01]
[1617808828471,2.90695,2005.0,2004.9,6.05]
[1617808828779,2.90695,2005.0,2004.8,6.26]
[1617808829170,2.90695,2005.0,2004.9,6.09]
[1617808829367,2.90695,2005.0,2004.8,6.2]
[1617808829867,2.90695,2005.0,2004.9,2.90695]
[1617808830067,2.90695,2005.0,2004.9,8.97695]
[1617808831770,63.4544,2006.1,2004.9,8.97695]
[1617808831970,62.4449,2006.1,2005.0,67.1815]
[1617808832270,62.4449,2006.1,2005.1,6.22]
[1617808833574,2.571,2006.1,2005.1,6.22]
[1617808833772,2.571,2006.1,2005.4,2.90695]
[1617808833972,68.2148,2005.9,2005.4,2.90695]
[1617808834473,68.2148,2005.9,2005.5,3.05]
[1617808835773,2.90695,2005.6,2005.5,3.05]
[1617808839193,2.571,2006.1,2005.6,59.1608]
[1617808839379,66.939,2006.5,2005.7,30.0]
[1617808839680,66.939,2006.5,2005.7,36.14]
[1617808840012,2.571,2006.9,2006.3,2.90695]
[1617808840190,2.571,2006.9,2006.5,68.4592]
[1617808840800,1.9917,2007.2,2006.6,6.13]
[1617808841388,1.0,2007.2,2006.6,6.13]
[1617808841879,2.90695,2006.7,2006.6,6.13]
[1617808842484,2.90695,2006.7,2006.4,6.23]
[1617808842780,2.90695,2006.7,2006.6,6.18]
[1617808842981,2.90695,2006.7,2006.4,6.03]
[1617808843481,2.90695,2006.7,2006.3,2.90695]
[1617808843482,2.90695,2006.7,2006.6,6.22]
[1617808843682,2.90695,2006.7,2006.4,6.06]
[1617808844083,2.90695,2006.7,2006.6,5.99]
[1617808844284,2.90695,2006.7,2006.4,6.15]
[1617808851496,2.90695,2006.7,2006.6,6.08]
[1617808851694,2.90695,2006.7,2006.6,2.8038]
[1617808852095,2.90695,2006.7,2006.6,9.0238]
[1617808852994,2.90695,2006.7,2006.6,6.22]
[1617808853195,2.90695,2006.7,2006.4,5.98]
[1617808853395,2.90695,2006.7,2006.6,78.376]
[1617808853596,2.90695,2006.7,2006.6,84.596]
[1617808853796,2.90695,2006.7,2006.6,78.376]
[1617808854296,2.90695,2006.7,2006.6,84.386]
[1617808855097,2.90695,2006.7,2006.6,6.01]
[1617808855309,65.3295,2006.6,2006.4,5.6007]
[1617808855598,64.3383,2006.6,2005.9,6.26]
[1617808855798,64.3383,2006.6,2006.5,6.18]
[1617808855998,67.24525,2006.6,2006.5,5.7161]
[1617808856199,67.24525,2006.6,2006.0,6.01]
[1617808856504,67.24525,2006.6,2006.5,6.08]
[1617808856705,68.24885,2006.6,2005.6,59.88145]
[1617808856901,98.24885,2006.6,2005.7,6.14]
[1617808857102,98.24885,2006.6,2005.6,59.88145]
[1617808857103,68.24885,2006.6,2006.5,6.09]
[1617808857301,68.24885,2006.6,2005.6,59.88145]
[1617808857502,3.91055,2006.6,2005.7,5.98]
[1617808857705,3.91055,2006.6,2006.5,6.22]
[1617808857901,2.90695,2006.1,2006.0,71.7994]
[1617808858502,2.90695,2006.1,2006.0,75.2294]
[1617808858702,2.90695,2006.1,2006.0,3.43]
[1617808859201,2.90695,2006.1,2005.7,6.17]
[1617808859707,2.90695,2006.1,2006.0,6.23]
[1617808859905,76.3688,2006.2,2005.7,6.24]
[1617808859906,2.90695,2005.8,2005.7,6.24]
[1617808860107,2.90695,2005.8,2005.6,76.44625]
[1617808860506,2.90695,2005.8,2005.7,6.03]
[1617808864916,2.90695,2005.8,2005.3,6.04]
[1617808865143,4.99465,2005.8,2005.3,6.04]
[1617808865316,4.99465,2005.8,2005.7,6.05]
[1617808865517,4.99465,2005.8,2004.6,6.09]
[1617808865824,81.8671,2004.9,2004.5,73.2065]
[1617808866026,83.8193,2004.9,2004.8,2.90695]
[1617808866518,1.9522,2004.9,2004.8,8.94695]
[1617808867222,72.5319,2005.7,2004.8,8.94695]
[1617808867420,72.5319,2005.7,2005.2,56.4129]
[1617808868020,2.90695,2005.7,2005.6,2.90695]
[1617808868320,3.558,2006.6,2005.6,8.91695]
[1617808868520,69.8414,2006.5,2005.8,70.2609]
[1617808868920,69.8414,2006.5,2005.9,6.12]
[1617808870121,69.8414,2006.5,2006.0,2.90695]
[1617808870423,69.8414,2006.5,2006.1,6.11]
[1617808872126,2.90695,2006.2,2006.1,6.11]
[1617808875532,2.90695,2006.2,2006.1,82.6874]
[1617808879434,2.90695,2006.2,2006.1,6.11]
[1617808879638,83.26045,2006.2,2006.1,71.0298]
[1617808881444,83.26045,2006.2,2006.1,73.2942]
[1617808882643,83.26045,2006.2,2006.1,71.0298]
[1617808883346,85.46575,2006.2,2006.1,71.0298]
[1617808887547,5.11225,2006.2,2006.1,6.11]
[1617808888348,2.90695,2006.2,2006.1,6.11]
[1617808889652,5.26565,2006.2,2006.1,6.11]
[1617808892961,2.90695,2006.2,2006.1,6.11]
[1617808895162,2.90695,2006.2,2006.1,9.187]
[1617808896361,2.90695,2006.2,2006.1,11.187]
[1617808896661,3.91795,2006.2,2006.1,11.187]
[1617808896862,2.90695,2006.2,2006.1,11.187]
[1617808897362,2.90695,2006.2,2006.1,12.1803]
[1617808897565,2.90695,2006.2,2006.1,11.187]
[1617808898166,2.90695,2006.2,2006.1,9.187]
[1617808898382,2.90695,2006.2,2006.1,6.11]
[1617808899267,5.19825,2006.2,2006.1,6.11]
[1617808904776,2.90695,2006.2,2006.1,6.11]
[1617808910085,5.03825,2006.2,2006.1,6.11]
[1617808910593,5.03825,2006.2,2006.1,75.9794]
[1617808913689,5.03825,2006.2,2006.1,6.11]
[1617808915228,5.03825,2006.2,2004.6,77.3323]
[1617808915229,65.5436,2006.1,2005.4,6.07]
[1617808915396,95.5436,2006.1,2004.6,77.3323]
[1617808915894,95.5436,2006.1,2005.5,5.06]
[1617808916095,30.0,2006.1,2005.1,6.24]
[1617808916297,30.0,2006.1,2003.9,30.0]
[1617808916298,0.01474928,2006.1,2005.6,6.01]
[1617808916595,2.90695,2005.7,2005.5,59.0426]
[1617808916895,5.94235,2005.7,2005.6,6.25]
[1617808917295,5.94235,2005.7,2005.5,59.0426]
[1617808917495,5.94235,2005.7,2005.6,5.98]
[1617808920199,5.94235,2005.7,2004.9,6.24]
[1617808920398,72.0319,2005.3,2004.9,6.24]
[1617808920699,2.90695,2005.0,2004.9,6.24]
[1617808920998,4.97965,2005.0,2004.9,6.24]
[1617808922198,2.90695,2005.0,2004.9,6.24]
[1617808926400,69.5987,2005.9,2004.9,6.24]
[1617808926601,67.0277,2005.9,2005.5,2.90695]
[1617808927104,67.0277,2005.9,2005.6,6.18]
[1617808928502,2.90695,2005.7,2005.6,6.18]
[1617808929604,5.47795,2005.7,2005.6,6.18]
[1617808929805,78.5679,2005.6,2004.4,0.72]
[1617808930003,78.5679,2005.6,2004.3,75.0196]
[1617808930404,78.5679,2005.6,2004.5,6.11]
[1617808930604,78.5679,2005.6,2004.8,2.90695]